bitfinex-derivatives/quotes_SOLF0:USTF0_20241227
["timestamp","ask_amount","ask_price","bid_price","bid_amount"]
[1735315495903,4.09305614,183.48,183.47,3.98]
[1735315496701,4.09301961,183.48,183.47,3.98]
[1735315497394,2.7288,183.48,183.47,3.98]
[1735315497599,4.093038,183.48,183.47,3.98]
[1735315499105,2.7286,183.49,183.47,3.98]
[1735315499307,6.5953,183.56,183.47,3.98]
[1735315499604,3.54686598,183.55,183.47,3.98]
[1735315499802,3.54686598,183.54,183.47,3.98]
[1735315500002,3.54686598,183.53,183.47,3.98]
[1735315500192,1.36417922,183.52,183.47,3.98]
[1735315500395,3.3491,183.59,183.47,10.6171]
[1735315500604,1.36393667,183.58,183.47,10.6171]
[1735315500803,1.36393667,183.57,183.47,10.6171]
[1735315501004,1.36393667,183.56,183.47,10.6171]
[1735315501206,1.36393667,183.55,183.47,10.6171]
[1735315501505,1.36393667,183.54,183.47,10.6171]
[1735315501703,3.3491,183.59,183.47,10.6171]
[1735315501905,1.36390956,183.58,183.47,6.6371]
[1735315502097,2.7284,183.51,183.48,3.98]
[1735315502494,3.3491,183.59,183.47,6.6371]
[1735315502694,1.36406071,183.58,183.49,3.98]
[1735315503003,1.3640453,183.57,183.49,3.98]
[1735315503305,1.3640453,183.56,183.49,3.98]
[1735315503500,2.728,183.54,183.49,3.98]
[1735315503706,20.41938764,183.63,183.49,3.98]
[1735315503907,1.3637281,183.62,183.49,3.98]
[1735315504203,1.3637281,183.61,183.49,3.98]
[1735315504403,1.3637281,183.6,183.49,3.98]
[1735315504598,2.7275,183.56,183.49,3.98]
[1735315504800,1.36379395,183.55,183.49,3.98]
[1735315505003,1.36379395,183.54,183.49,3.98]
[1735315505307,20.41938764,183.6,183.49,3.98]
[1735315505506,4.09173524,183.63,183.46,13.92425]
[1735315505507,20.41938764,183.57,183.46,13.92425]
[1735315505707,20.41938764,183.54,183.46,13.92425]
[1735315506003,2.7289,183.47,183.46,9.94425]
[1735315506213,2.7289,183.47,183.46,13.92425]
[1735315507505,2.7289,183.47,183.46,9.94425]
[1735315507705,2.7289,183.47,183.46,4.80335]
[1735315508307,20.41938764,183.51,183.38,3.0969]
[1735315508803,20.41938764,183.51,183.39,3.98]
[1735315509201,1.36455853,183.5,183.39,3.98]
[1735315509407,1.36455853,183.49,183.39,3.98]
[1735315509601,2.729,183.47,183.39,3.98]
[1735315509807,1.36455853,183.46,183.42,2.7296]
[1735315510114,20.41938764,183.54,183.39,3.98]
[1735315510413,20.41938764,183.51,183.39,3.98]
[1735315510608,1.36436807,183.5,183.39,3.98]
[1735315510813,1.36436807,183.49,183.39,3.98]
[1735315511112,1.36436807,183.48,183.39,3.98]
[1735315511312,2.7296,183.42,183.39,3.98]
[1735315511507,20.41938764,183.51,183.39,3.98]
[1735315511812,2.7292,183.45,183.4,2.7299]
[1735315512015,1.36449706,183.44,183.39,3.98]
[1735315512212,1.36451385,183.43,183.39,3.98]
[1735315512408,20.41938764,183.51,183.39,3.98]
[1735315512715,1.36465204,183.5,183.39,3.98]
[1735315512913,1.36465204,183.49,183.39,3.98]
[1735315513113,1.36465204,183.48,183.39,3.98]
[1735315513410,1.36465204,183.47,183.39,3.98]
[1735315513610,1.36465204,183.46,183.39,3.98]
[1735315513808,20.41938764,183.52,183.39,3.98]
[1735315513809,1.36465204,183.45,183.39,3.98]
[1735315514009,23.55828764,183.55,183.39,3.98]
[1735315514205,1.36437591,183.54,183.4,3.1945]
[1735315514517,20.41938764,183.52,183.4,3.1945]
[1735315514709,2.7291,183.46,183.4,5.9244]
[1735315514908,1.36437591,183.45,183.4,3.1945]
[1735315515108,2.7295,183.43,183.4,3.1945]
[1735315515309,1.36464003,183.42,183.41,3.98]
[1735315515915,4.09424003,183.42,183.41,3.98]
[1735315516106,1.36464003,183.42,183.34,6.1366]
[1735315516312,1.36464003,183.41,183.35,3.98]
[1735315516509,2.7303,183.38,183.34,3.4059]
[1735315516813,3.1389,183.47,183.35,3.98]
[1735315517013,1.36499812,183.46,183.34,3.4059]
[1735315517313,1.36499812,183.45,183.34,3.4059]
[1735315517614,2.7305,183.37,183.35,3.98]
[1735315518419,2.7305,183.36,183.35,3.98]
[1735315519319,20.41938764,183.46,183.35,3.98]
[1735315519510,1.36509888,183.45,183.35,3.98]
[1735315519707,1.36509888,183.44,183.35,3.98]
[1735315519913,1.36509888,183.43,183.35,3.98]
[1735315520110,1.36509888,183.42,183.35,3.98]
[1735315520318,1.36509888,183.41,183.36,3.98]
[1735315520609,1.36509888,183.4,183.36,3.98]
[1735315520817,2.7304,183.37,183.36,3.98]
[1735315521311,2.7307,183.35,183.3,6.0074]
[1735315521512,2.7307,183.35,183.31,3.98]
[1735315521811,20.41938764,183.46,183.3,3.276]
[1735315522016,2.731,183.33,183.31,3.98]
[1735315522421,2.731,183.33,183.32,3.98]
[1735315522813,2.7308,183.35,183.32,3.98]
[1735315523105,20.41938764,183.43,183.32,3.98]
[1735315523311,1.36524843,183.42,183.32,3.98]
[1735315523510,1.36524843,183.41,183.32,3.98]
[1735315523719,2.7307,183.35,183.32,3.98]
[1735315523913,20.41938764,183.43,183.32,3.98]
[1735315524117,2.7302,183.38,183.33,2.7309]
[1735315524415,3.1389,183.47,183.32,3.98]
[1735315524613,1.36508371,183.46,183.32,3.98]
[1735315524811,2.7299,183.41,183.35,2.7306]
[1735315525009,3.1389,183.47,183.35,2.7306]
[1735315525222,1.36494028,183.46,183.34,3.1825]
[1735315525413,2.7304,183.37,183.34,3.1825]
[1735315525610,20.41938764,183.46,183.34,3.1825]
[1735315525913,3.1389,183.47,183.34,3.1825]
[1735315526117,1.36490466,183.46,183.34,3.1825]
[1735315526311,1.36490466,183.45,183.34,3.1825]
[1735315526616,1.36490466,183.44,183.34,3.1825]
[1735315526813,1.36490466,183.43,183.34,3.1825]
[1735315527015,1.36490466,183.42,183.34,3.1825]
[1735315527221,1.36514313,183.41,183.34,3.1825]
[1735315527423,1.36514313,183.4,183.34,3.1825]
[1735315527722,3.1389,183.47,183.34,3.1825]
[1735315527919,1.36481981,183.46,183.35,3.3899]
[1735315528120,3.1389,183.47,183.35,3.3899]
[1735315528121,2.7299,183.41,183.36,2.7304]
[1735315528312,3.1389,183.47,183.35,3.3899]
[1735315528518,2.7304,183.37,183.35,3.3899]
[1735315528722,3.1389,183.47,183.35,3.3899]
[1735315528921,1.36501782,183.46,183.35,3.3899]
[1735315529119,1.36501782,183.45,183.35,3.3899]
[1735315529314,2.7302,183.39,183.35,3.3899]
[1735315529622,3.1389,183.47,183.35,3.3899]
[1735315529825,1.36493839,183.46,183.3,20.41938764]
[1735315530024,1.36493839,183.45,183.31,7.3699]
[1735315530326,3.1389,183.47,183.31,7.3699]
[1735315530327,2.7305,183.37,183.32,2.7311]
[1735315530516,3.1389,183.47,183.31,7.3699]
[1735315530721,1.36514877,183.46,183.31,7.3699]
[1735315530925,2.7307,183.35,183.31,10.1011]
[1735315531221,3.1389,183.47,183.31,10.1011]
[1735315531424,2.7305,183.37,183.32,2.7311]
[1735315531614,3.1389,183.47,183.31,7.3699]
[1735315531814,1.36515258,183.46,183.31,7.3699]
[1735315532015,3.1389,183.47,183.31,7.3699]
[1735315532016,2.7306,183.36,183.31,7.3699]
[1735315532615,1.36540458,183.35,183.3,6.3363]
[1735315532822,3.3045,183.4,183.29,56.7]
[1735315533022,1.36542891,183.39,183.29,56.7]
[1735315533224,1.36543714,183.38,183.3,3.98]
[1735315533424,2.7314,183.31,183.3,3.98]
[1735315534228,2.7314,183.3,183.29,56.7]
[1735315534428,2.7314,183.3,183.29,60.68]
[1735315534629,20.41938764,183.38,183.29,56.7]
[1735315534829,1.36555396,183.37,183.3,3.98]
[1735315535029,1.36555396,183.36,183.3,3.98]
[1735315535227,1.36555396,183.35,183.3,3.98]
[1735315535432,1.36555396,183.34,183.3,3.98]
[1735315535628,1.36542687,183.33,183.3,3.98]
[1735315535828,3.1729,183.39,183.3,3.98]
[1735315536131,1.36542629,183.38,183.3,3.98]
[1735315536333,1.36542629,183.37,183.3,3.98]
[1735315536535,2.7311,183.32,183.3,3.98]
[1735315537730,1.36541783,183.31,183.3,3.98]
[1735315538132,3.1729,183.39,183.3,3.98]
[1735315538334,1.36549323,183.38,183.3,3.98]
[1735315538536,1.36549323,183.37,183.3,3.98]
[1735315538732,1.36549323,183.36,183.3,3.98]
[1735315539027,1.36549323,183.35,183.3,3.98]
[1735315539233,6.7041,183.4,183.3,3.98]
[1735315539433,1.36523113,183.39,183.3,3.98]
[1735315539631,2.7307,183.35,183.3,6.7114]
[1735315540235,3.3045,183.4,183.3,3.98]
[1735315540434,2.7305,183.37,183.31,6.1432]
[1735315540634,1.36519822,183.36,183.31,6.1432]
[1735315540937,2.7305,183.37,183.31,9.2735]
[1735315541131,1.36515665,183.36,183.31,9.6535]
[1735315541333,6.4515,183.45,183.31,9.6535]
[1735315541629,1.365013,183.44,183.33,20.41938764]
[1735315541824,1.365013,183.43,183.33,20.41938764]
[1735315542137,1.365013,183.42,183.33,20.41938764]
[1735315542431,20.41938764,183.51,183.4,2.7298]
[1735315542738,20.41938764,183.51,183.41,3.98]
[1735315542938,2.7291,183.46,183.41,3.98]
[1735315543229,20.41938764,183.51,183.41,3.98]
[1735315543426,2.7293,183.45,183.41,3.98]
[1735315543626,6.251,183.52,183.41,3.98]
[1735315543831,6.251,183.52,183.41,6.7096]
[1735315544035,6.25099959,183.52,183.41,6.7096]
[1735315544236,6.25099959,183.52,183.41,3.98]
[1735315544738,20.41938764,183.51,183.41,3.98]
[1735315545736,2.7293,183.45,183.41,3.98]
[1735315545932,20.41938764,183.51,183.41,3.98]
[1735315546235,20.41938764,183.48,183.34,56.74]
[1735315546532,20.41938764,183.48,183.35,3.98]
[1735315546734,2.7303,183.38,183.36,3.98]
[1735315547130,20.41938764,183.45,183.36,3.98]
[1735315547434,2.7304,183.37,183.36,3.98]
[1735315547633,20.41938764,183.45,183.36,3.98]
[1735315547841,2.7298,183.41,183.36,3.98]
[1735315548535,2.7301,183.39,183.36,3.98]
[1735315549240,2.7304,183.37,183.36,3.98]
[1735315549443,20.41938764,183.45,183.36,3.98]
[1735315550039,33.79333185,183.5,183.36,24.39938764]
[1735315550430,29.69845888,183.5,183.39,20.41938764]
[1735315550635,29.69845888,183.5,183.4,9.6884]
[1735315551133,150.78187171,183.54,183.42,20.41938764]
[1735315551329,2.7277,183.56,183.49,2.7286]
[1735315551537,7.42461472,183.57,183.5,3.98]
[1735315551934,10.15201472,183.57,183.5,6.7083]
[1735315552138,10.15201472,183.57,183.5,3.98]
[1735315552436,2.7274,183.57,183.5,3.98]
[1735315552835,6.2377,183.61,183.5,3.98]
[1735315553034,2.7271,183.6,183.5,3.98]
[1735315553236,20.41938764,183.63,183.51,3.2552]
[1735315553431,20.41938764,183.6,183.5,3.98]
[1735315553931,20.41938764,183.57,183.44,2.7292]
[1735315554132,20.41938764,183.57,183.45,3.98]
[1735315554333,20.41938764,183.57,183.46,3.98]
[1735315554538,2.7286,183.49,183.46,3.98]
[1735315554940,9.5514,183.56,183.46,3.98]
[1735315555543,20.41938764,183.54,183.47,3.98]
[1735315555738,2.7287,183.48,183.47,3.98]
[1735315556648,2.7291,183.46,183.45,3.98]
[1735315557048,2.7288,183.48,183.45,3.98]
[1735315557347,20.41938764,183.54,183.45,3.98]
[1735315557542,2.7285,183.5,183.45,3.98]
[1735315557743,20.41938764,183.54,183.45,3.98]
[1735315558149,2.7282,183.52,183.45,3.98]
[1735315558349,20.41938764,183.54,183.45,3.98]
[1735315558549,9.5514,183.56,183.45,3.98]
[1735315558742,2.7283,183.52,183.46,2.729]
[1735315559049,9.5514,183.56,183.46,2.729]
[1735315559349,9.5514,183.56,183.45,3.98]
[1735315559645,2.7285,183.5,183.45,3.98]
[1735315560746,2.7286,183.49,183.45,3.98]
[1735315562349,2.7286,183.49,183.43,2.7295]
[1735315562545,2.7286,183.49,183.44,3.98]
[1735315563147,2.7289,183.47,183.44,3.98]
[1735315563447,20.41938764,183.54,183.44,3.98]
[1735315563844,2.7288,183.48,183.44,3.98]
[1735315564243,20.41938764,183.54,183.44,3.98]
[1735315564447,9.5514,183.56,183.44,3.98]
[1735315564651,3.1633,183.56,183.45,20.41938764]
[1735315564847,3.1633,183.56,183.45,30.12988764]
[1735315565646,3.1633,183.56,183.45,32.85898764]
[1735315565844,3.1633,183.56,183.46,3.96]
[1735315566045,2.7283,183.52,183.46,6.689]
[1735315566243,2.7283,183.52,183.46,3.96]
[1735315566849,2.7283,183.52,183.46,6.689]
[1735315567247,2.7283,183.52,183.46,3.96]
[1735315567444,6.3705,183.62,183.48,20.41938764]
[1735315567650,3.1266,183.62,183.48,20.41938764]
[1735315568452,3.13832249,183.65,183.51,20.41938764]
[1735315568649,3.13832249,183.65,183.52,3.96]
[1735315568847,3.13832249,183.65,183.54,20.41938764]
[1735315569146,3.0974,183.7,183.55,3.323]
[1735315569346,2.7265,183.63,183.58,2.7272]
[1735315569647,3.0974,183.7,183.59,3.96]
[1735315569848,2.7264,183.64,183.59,6.6871]
[1735315570149,3.0974,183.7,183.59,3.96]
[1735315570353,20.41938764,183.74,183.59,3.96]
[1735315570744,2.7254,183.71,183.64,2.7263]
[1735315571051,9.8389,183.77,183.65,3.96]
[1735315571253,2.7255,183.7,183.66,3.96]
[1735315571449,2.7255,183.7,183.67,3.96]
[1735315571850,9.8389,183.77,183.67,3.96]
[1735315572050,2.7258,183.68,183.67,3.96]
[1735315572450,2.7253,183.71,183.67,3.96]
[1735315572651,20.41938764,183.74,183.61,6.4521]
[1735315572856,20.41938764,183.74,183.62,3.96]
[1735315573051,30.25828764,183.77,183.62,3.96]
[1735315573254,30.25828764,183.77,183.63,20.41938764]
[1735315573455,3.13624882,183.78,183.63,23.70828764]
[1735315573759,2.7246,183.76,183.7,2.7254]
[1735315573948,2.7246,183.76,183.71,3.96]
[1735315574456,3.13624882,183.78,183.71,3.96]
[1735315574758,2.7247,183.75,183.71,3.96]
[1735315574951,3.13624882,183.78,183.71,3.96]
[1735315575152,2.7249,183.74,183.71,3.96]
[1735315575351,3.13624882,183.78,183.63,23.70828764]
[1735315575656,2.7259,183.67,183.64,3.96]
[1735315575855,20.41938764,183.74,183.64,3.96]
[1735315576261,2.7253,183.71,183.64,3.96]
[1735315576456,3.13624882,183.78,183.64,3.96]
[1735315576761,23.55563646,183.78,183.64,3.96]
[1735315576955,23.55563646,183.78,183.64,6.6863]
[1735315577157,23.55563646,183.78,183.64,3.96]
[1735315577359,3.13624882,183.78,183.66,20.41938764]
[1735315578260,2.725,183.74,183.66,23.14528764]
[1735315578560,3.13624882,183.78,183.64,3.96]
[1735315578963,2.7255,183.7,183.64,6.6862]
[1735315579459,2.7253,183.72,183.65,2.7262]
[1735315579764,2.7253,183.72,183.64,3.96]
[1735315579958,23.55563646,183.78,183.64,3.96]
[1735315580161,3.13624882,183.78,183.64,3.96]
[1735315580359,3.13624882,183.78,183.66,20.41938764]
[1735315580756,2.7245,183.77,183.66,20.41938764]
[1735315581263,2.7245,183.77,183.7,2.7253]
[1735315581467,3.13624882,183.78,183.71,3.96]
[1735315582053,9.6497,183.82,183.71,3.96]
[1735315582356,20.41938764,183.87,183.75,2.7247]
[1735315582559,20.41938764,183.87,183.72,20.41938764]
[1735315582560,2.724,183.8,183.73,3.2792]
[1735315582758,9.8241,183.86,183.73,6.0042]
[1735315583066,9.8241,183.86,183.73,3.2792]
[1735315583253,2.7239,183.81,183.73,3.2792]
[1735315583657,9.8241,183.86,183.73,3.2792]
[1735315584262,2.7235,183.84,183.73,3.2792]
[1735315584459,9.8241,183.86,183.77,2.7243]
[1735315584663,9.8241,183.86,183.78,3.96]
[1735315585063,6.5132,183.86,183.78,3.96]
[1735315585362,20.41938764,183.93,183.78,3.96]
[1735315585563,2.7229,183.88,183.78,24.37938764]
[1735315585767,3.1096,183.92,183.78,24.37938764]
[1735315586566,2.7224,183.91,183.84,2.7233]
[1735315586767,6.5866,183.95,183.85,3.96]
[1735315587063,20.41938764,183.98,183.85,3.96]
[1735315587659,20.41938764,183.95,183.85,3.96]
[1735315587861,2.723,183.87,183.85,3.96]
[1735315588463,9.5826,183.94,183.85,3.96]
[1735315589161,20.41938764,184.01,183.85,3.96]
[1735315589461,2.7218,183.95,183.85,3.96]
[1735315589758,3.152,184.0,183.85,3.96]
[1735315589963,2.722,183.94,183.88,2.7228]
[1735315590267,3.152,184.0,183.88,2.7228]
[1735315590759,2.7219,183.94,183.88,2.7228]
[1735315591366,2.7219,183.94,183.86,2.7229]
[1735315591663,20.41938764,183.95,183.82,3.3214]
[1735315591861,6.5477,183.94,183.85,3.96]
[1735315592060,2.7228,183.88,183.85,3.96]
[1735315592261,20.41938764,183.92,183.85,3.96]
[1735315592466,3.3997,183.91,183.85,3.96]
[1735315592963,3.3997,183.91,183.79,6.2587]
[1735315593166,20.41938764,183.89,183.8,3.96]
[1735315593561,2.7238,183.81,183.8,3.96]
[1735315593960,2.7232,183.86,183.8,3.96]
[1735315594267,3.3997,183.91,183.8,3.96]
[1735315594663,2.7231,183.87,183.8,6.684]
[1735315594966,3.3997,183.91,183.8,3.96]
[1735315595164,20.41938764,183.89,183.72,26.80868764]
[1735315595366,20.41938764,183.89,183.76,2.7245]
[1735315595567,3.3997,183.91,183.77,1.00090177]
[1735315595762,3.3997,183.91,183.78,1.00090177]
[1735315595962,3.3997,183.91,183.79,4.96090177]
[1735315596270,3.3997,183.91,183.79,3.96]
[1735315596569,3.3997,183.91,183.8,1.00076651]
[1735315596772,2.7229,183.87,183.81,2.7238]
[1735315597171,3.3997,183.91,183.79,3.96]
[1735315598367,3.3997,183.91,183.79,2.724]
[1735315598567,20.41938764,183.89,183.8,3.96]
[1735315599070,20.41938764,183.89,183.77,2.7244]
[1735315599276,20.41938764,183.89,183.78,3.96]
[1735315599579,2.7241,183.79,183.78,3.96]
[1735315600070,2.7244,183.78,183.72,2.7251]
[1735315600279,9.7046,183.82,183.71,3.2121]
[1735315600475,20.41938764,183.81,183.72,3.96]
[1735315600674,20.41938764,183.81,183.73,3.96]
[1735315602272,2.7249,183.74,183.73,3.96]
[1735315602475,9.7046,183.82,183.68,56.66]
[1735315602476,20.41938764,183.78,183.68,56.66]
[1735315602676,20.41938764,183.78,183.69,3.96]
[1735315603477,2.7249,183.74,183.69,3.96]
[1735315603680,20.41938764,183.78,183.69,3.96]
[1735315604074,20.41938764,183.78,183.7,2.7254]
[1735315604275,20.41938764,183.81,183.69,3.96]
[1735315604682,2.7246,183.77,183.71,2.7253]
[1735315604871,20.41938764,183.81,183.69,3.96]
[1735315605272,2.7246,183.76,183.7,2.7254]
[1735315605575,20.41938764,183.78,183.68,56.66]
[1735315605892,20.41938764,183.78,183.69,3.96]
[1735315606376,2.7253,183.71,183.69,3.96]
[1735315607075,20.41938764,183.78,183.69,3.96]
[1735315607275,20.41938764,183.75,183.66,3.96]
[1735315607481,20.41938764,183.72,183.57,20.41938764]
[1735315607777,3.2462,183.71,183.58,4.96172101]
[1735315607980,2.7261,183.66,183.6,2.7269]
[1735315608281,3.2462,183.71,183.58,3.96]
[1735315608482,2.7257,183.69,183.62,2.7266]
[1735315608676,3.1101,183.74,183.6,20.41938764]
[1735315608877,3.1101,183.74,183.61,4.09990092]
[1735315609178,3.1101,183.74,183.63,20.41938764]
[1735315609380,3.1101,183.74,183.64,3.96]
[1735315610186,3.1101,183.74,183.68,2.7257]
[1735315610778,5.8351,183.74,183.68,2.7257]
[1735315610975,3.1101,183.74,183.67,2.7259]
[1735315611185,3.1101,183.74,183.64,3.96]
[1735315612280,2.7252,183.72,183.67,2.7258]
[1735315612482,3.1101,183.74,183.62,6.4482]
[1735315612680,3.1101,183.74,183.51,60.20292455]
[1735315612681,20.41938764,183.72,183.63,3.96]
[1735315612882,2.7257,183.69,183.63,3.96]
[1735315613085,3.3597,183.71,183.63,3.96]
[1735315613481,2.7257,183.69,183.63,3.96]
[1735315613678,3.3597,183.71,183.63,3.96]
[1735315613982,2.7263,183.64,183.63,3.96]
[1735315614890,2.7263,183.64,183.54,20.41938764]
[1735315615191,20.41938764,183.69,183.57,3.96]
[1735315615384,2.7265,183.63,183.57,6.6874]
[1735315615585,20.41938764,183.69,183.57,3.96]
[1735315615784,2.7268,183.61,183.58,3.96]
[1735315616088,20.41938764,183.66,183.58,3.96]
[1735315616285,2.7269,183.61,183.58,3.96]
[1735315617392,3.1891,183.65,183.58,3.96]
[1735315617787,20.41938764,183.63,183.53,12.447]
[1735315618089,20.41938764,183.6,183.55,3.96]
[1735315618279,20.41938764,183.6,183.54,3.96]
[1735315619087,2.7278,183.55,183.54,3.96]
[1735315619996,20.41938764,183.6,183.54,3.96]
[1735315620186,2.7276,183.56,183.54,3.96]
[1735315620395,20.41938764,183.6,183.54,3.96]
[1735315620891,3.2053,183.62,183.54,6.6878]
[1735315621691,3.2053,183.62,183.55,2.7277]
[1735315621889,3.2053,183.62,183.54,3.96]
[1735315623088,2.727,183.6,183.55,2.7277]
[1735315623696,2.7267,183.62,183.57,2.7274]
[1735315624197,2.7266,183.63,183.58,2.7272]
[1735315625193,3.1891,183.65,183.58,2.7272]
[1735315625398,3.1891,183.65,183.54,3.96]
[1735315625594,3.1891,183.65,183.57,2.7274]
[1735315626098,2.7265,183.63,183.57,2.7274]
[1735315626498,3.1891,183.65,183.57,2.7274]
[1735315626699,2.7265,183.63,183.58,2.7272]
[1735315627302,2.7261,183.66,183.54,3.96]
[1735315627500,2.7261,183.66,183.55,3.1704]
[1735315627703,20.41938764,183.69,183.55,3.1704]
[1735315628000,20.41938764,183.66,183.51,6.4518]
[1735315628199,20.41938764,183.63,183.52,4.96203617]
[1735315628399,2.7271,183.6,183.53,1.00204644]
[1735315628600,2.7271,183.6,183.52,3.96]
[1735315628800,20.41938764,183.63,183.52,3.96]
[1735315629001,3.3049,183.65,183.52,3.96]
[1735315629203,3.3049,183.65,183.53,3.1039]
[1735315629405,20.41938764,183.69,183.53,23.52328764]
[1735315629598,20.41938764,183.69,183.54,1.00204198]
[1735315630095,2.7262,183.65,183.6,2.7269]
[1735315630407,20.41938764,183.69,183.61,3.96]
[1735315630702,20.41938764,183.69,183.62,3.96]
[1735315630905,2.7263,183.65,183.62,3.96]
[1735315631095,3.2866,183.72,183.62,3.96]
[1735315631096,23.70598764,183.72,183.62,3.96]
[1735315631294,3.2866,183.72,183.62,3.96]
[1735315631499,2.7255,183.7,183.62,3.96]
[1735315631697,3.2866,183.72,183.62,3.96]
[1735315631905,2.7262,183.65,183.62,3.96]
[1735315632105,23.70598764,183.72,183.62,3.96]
[1735315632301,3.2866,183.72,183.62,3.96]
[1735315632605,6.0118,183.72,183.62,3.96]
[1735315632899,3.1065,183.73,183.62,3.96]
[1735315633105,3.1065,183.73,183.65,2.7261]
[1735315633106,2.7253,183.71,183.65,2.7261]
[1735315634108,3.1065,183.73,183.62,3.96]
[1735315634109,2.7251,183.73,183.62,3.96]
[1735315634304,30.06178764,183.78,183.62,24.37938764]
[1735315634504,2.7246,183.76,183.7,2.7253]
[1735315634701,2.7246,183.76,183.71,3.96]
[1735315635105,30.25478764,183.84,183.71,3.96]
[1735315635311,30.25478764,183.84,183.72,3.17]
[1735315636515,20.41938764,183.81,183.71,3.96]
[1735315636813,20.41938764,183.78,183.71,3.96]
[1735315637212,2.7255,183.7,183.66,3.17]
[1735315637418,20.41938764,183.78,183.67,3.96]
[1735315637711,2.7248,183.75,183.67,6.6858]
[1735315638014,20.41938764,183.78,183.67,3.96]
[1735315638219,2.7245,183.77,183.72,2.7251]
[1735315638418,2.7245,183.77,183.73,3.96]
[1735315638612,20.41938764,183.81,183.73,3.96]
[1735315638818,20.41938764,183.81,183.74,2.7249]
[1735315639014,30.25478764,183.84,183.73,3.96]
[1735315639429,2.724,183.8,183.74,2.7247]
[1735315639718,6.4733,183.84,183.73,3.96]
[1735315641314,6.4733,183.84,183.74,3.2746]
[1735315642316,2.7241,183.8,183.74,3.2746]
[1735315642920,2.7241,183.8,183.75,2.7247]
[1735315643422,2.7238,183.81,183.75,2.7247]
[1735315643619,20.41938764,183.87,183.78,2.7243]
[1735315643917,20.41938764,183.87,183.79,3.96]
[1735315645216,3.1462,183.88,183.79,3.96]
[1735315645621,2.7232,183.85,183.79,3.96]
[1735315645818,3.1462,183.88,183.79,3.96]
[1735315646217,2.723,183.87,183.81,2.7238]
[1735315646416,3.201,183.89,183.81,2.7238]
[1735315646818,3.201,183.89,183.79,3.96]
[1735315646819,2.7236,183.83,183.79,3.96]
[1735315647415,2.7234,183.84,183.79,3.96]
[1735315647926,3.201,183.89,183.79,3.96]
[1735315648328,20.41938764,183.87,183.74,3.2746]
[1735315648531,20.41938764,183.87,183.75,3.96]
[1735315648824,20.41938764,183.87,183.75,6.6846]
[1735315649124,20.41938764,183.87,183.75,3.96]
[1735315649327,2.7234,183.85,183.79,2.7241]
[1735315649731,2.7234,183.85,183.75,3.96]
[1735315650229,3.201,183.89,183.75,3.96]
[1735315650429,20.41938764,183.87,183.74,3.2746]
[1735315650725,20.41938764,183.87,183.75,3.96]
[1735315651231,20.41938764,183.87,183.77,2.7244]
[1735315651424,20.41938764,183.87,183.75,3.96]
[1735315651624,20.41938764,183.87,183.76,2.7246]
[1735315651819,20.41938764,183.87,183.74,3.2746]
[1735315652020,3.2404,183.86,183.75,3.96]
[1735315652231,3.2404,183.86,183.77,2.7244]
[1735315653629,3.2404,183.86,183.78,3.96]
[1735315654331,2.7238,183.81,183.78,3.96]
[1735315655027,3.2404,183.86,183.78,3.96]
[1735315656228,20.41938764,183.81,183.76,3.94]
[1735315657430,20.41938764,183.78,183.67,6.5605]
[1735315657731,20.41938764,183.75,183.63,3.1585]
[1735315657931,2.7258,183.68,183.64,3.94]